bitfinex/quotes_BTCUSD_20251217
["timestamp","ask_amount","ask_price","bid_price","bid_amount"]
[1765994755082,0.00061286,86785.0,86779.0,0.01152352]
[1765994755249,0.00061286,86785.0,86779.0,0.24199376]
[1765994755428,0.001,86783.0,86780.0,0.01152339]
[1765994755611,0.0907,86788.0,86782.0,0.01152312]
[1765994755816,0.0907,86788.0,86781.0,0.01152325]
[1765994756001,0.24194254,86798.0,86780.0,0.01213338]
[1765994756002,0.0907,86792.0,86780.0,0.01213338]
[1765994756199,0.0907,86788.0,86782.0,0.01152312]
[1765994756450,0.0907,86788.0,86783.0,0.01152299]
[1765994756784,0.0907,86788.0,86782.0,0.24198538]
[1765994756785,0.0907,86788.0,86782.0,0.01152312]
[1765994756954,1.0,86796.0,86785.0,0.01152272]
[1765994757155,0.001,86792.0,86787.0,0.24197158]
[1765994757366,0.001,86792.0,86786.0,0.24197449]
[1765994757578,0.001,86792.0,86788.0,0.01152233]
[1765994757742,0.72783073,86800.0,86792.0,0.01152179]
[1765994757743,1.0,86799.0,86792.0,0.01152179]
[1765994757963,0.01152007,86805.0,86792.0,0.01213178]
[1765994758172,0.0907,86803.0,86792.0,0.01213178]
[1765994758379,0.0907,86803.0,86793.0,0.01152166]
[1765994758582,0.0907,86803.0,86793.0,0.24256321]
[1765994758828,0.0907,86803.0,86793.0,0.01213165]
[1765994759030,0.0907,86803.0,86794.0,0.01152153]
[1765994759183,1.0,86806.0,86797.0,0.24194366]
[1765994759383,0.69795,86810.0,86800.0,0.0112852]
[1765994759384,1.0,86809.0,86800.0,0.0112852]
[1765994759582,1.0,86809.0,86800.0,0.01189519]
[1765994759786,1.0,86811.0,86801.0,0.0115206]
[1765994759987,1.0,86811.0,86801.0,0.00060999]
[1765994760501,1.0,86811.0,86802.0,0.23040927]
[1765994760700,1.0,86811.0,86801.0,0.00060999]
[1765994760937,1.0,86811.0,86806.0,0.01151994]
[1765994761225,0.24188189,86820.0,86806.0,0.01151994]
[1765994761226,1.0,86826.0,86816.0,0.01151861]
[1765994761436,1.0,86824.0,86818.0,0.01151834]
[1765994761588,0.01151649,86832.0,86818.0,0.01151834]
[1765994761589,1.0,86833.0,86822.0,0.01151781]
[1765994761818,1.0,86833.0,86822.0,0.2424815]
[1765994762268,1.0,86833.0,86824.0,0.01151755]
[1765994762415,1.0,86833.0,86823.0,0.01151768]
[1765994762795,0.00100287,86834.0,86823.0,0.01151768]
[1765994762796,0.00314016,86825.0,86824.0,0.01151755]
[1765994763003,1.6e-07,86825.0,86824.0,0.24247859]
[1765994763201,1.6e-07,86825.0,86824.0,0.00060999]
[1765994763407,1.6e-07,86825.0,86813.0,0.01151901]
[1765994763621,1.0,86833.0,86825.0,0.01151742]
[1765994763823,1.0,86833.0,86824.0,0.01151755]
[1765994763955,1.0,86833.0,86828.0,0.01151702]
[1765994764201,1.0,86833.0,86824.0,0.01251755]
[1765994764531,1.0,86833.0,86824.0,0.001]
[1765994765129,1.0,86833.0,86820.0,0.24187915]
[1765994765326,1.0,86833.0,86821.0,0.01151795]
[1765994765524,0.01151649,86832.0,86820.0,0.01151808]
[1765994765744,1.01151635,86833.0,86824.0,0.01151755]
[1765994765745,1.0,86833.0,86824.0,0.01151755]
[1765994765948,0.0002,86845.0,86840.0,0.01151543]
[1765994766109,0.0002,86845.0,86842.0,0.24181768]
[1765994766310,0.0002,86845.0,86837.0,0.24182985]
[1765994766516,0.0002,86845.0,86833.0,0.23032608]
[1765994766517,0.00080998,86845.0,86833.0,0.23032608]
[1765994766831,0.00080998,86845.0,86832.0,0.01151649]
[1765994767047,0.00080998,86845.0,86835.0,0.01151609]
[1765994767249,0.00080998,86845.0,86838.0,0.01151569]
[1765994767451,1.20109998,86845.0,86831.0,0.01151662]
[1765994767654,0.00080998,86845.0,86836.0,0.01151596]
[1765994767826,0.00080998,86845.0,86836.0,0.24183352]
[1765994768026,0.00080998,86845.0,86837.0,0.01151582]
[1765994768230,0.00080998,86845.0,86834.0,0.00061]
[1765994768231,0.00080998,86845.0,86840.0,0.01151543]
[1765994768493,1.0,86850.0,86840.0,0.00060998]
[1765994768682,1.0,86850.0,86840.0,0.01212541]
[1765994768891,1.0,86850.0,86846.0,0.01151463]
[1765994769062,1.0,86850.0,86843.0,0.01151503]
[1765994769257,1.0,86854.0,86845.0,0.01151476]
[1765994769464,0.00069618,86847.0,86845.0,0.01212474]
[1765994769785,1.0,86854.0,86845.0,0.00060998]
[1765994769786,0.00066455,86846.0,86845.0,0.00060998]
[1765994771894,0.24181226,86845.0,86830.0,0.02983675]
[1765994772114,0.24181226,86845.0,86828.0,0.01151702]
[1765994772115,0.01151503,86843.0,86829.0,0.01151688]
[1765994772239,0.0002533,86833.0,86831.0,0.23033111]
[1765994772842,3.3e-06,86833.0,86830.0,0.01151675]
[1765994773070,1.43708676,86853.0,86839.0,0.01151556]
[1765994773272,1.0,86852.0,86841.0,0.23030592]
[1765994773591,3.1e-06,86841.0,86840.0,0.24182399]
[1765994774197,3.1e-06,86841.0,86839.0,0.24182581]
[1765994774570,3.1e-06,86841.0,86840.0,0.57127861]
[1765994775449,0.01151317,86857.0,86845.0,0.2302945]
[1765994775619,0.01151304,86858.0,86845.0,0.24180926]
[1765994775821,0.01832,86859.0,86853.0,0.0115137]
[1765994776025,0.0907,86866.0,86856.0,0.0115133]
[1765994776204,0.01151238,86863.0,86849.0,0.01273423]
[1765994776405,0.01151238,86863.0,86849.0,0.00122]
[1765994776406,0.01151291,86859.0,86849.0,0.00122]
[1765994776628,0.01151291,86859.0,86846.0,0.01151463]
[1765994776798,0.01151238,86863.0,86850.0,0.0115141]
[1765994776999,0.01151264,86861.0,86848.0,0.01151436]
[1765994777386,0.01151277,86860.0,86849.0,0.01151423]
[1765994777626,0.01151238,86863.0,86849.0,0.01151423]
[1765994777808,0.001,86857.0,86851.0,0.01151397]
[1765994778028,0.01151224,86864.0,86849.0,0.01151423]
[1765994778238,0.33245499,86865.0,86849.0,0.01151423]
[1765994778239,0.10221211,86865.0,86852.0,0.24178941]
[1765994778450,0.001,86861.0,86851.0,0.24179321]
[1765994778662,0.0907,86865.0,86852.0,0.23027548]
[1765994778871,0.0907,86865.0,86853.0,0.24178553]
[1765994779083,0.00060998,86866.0,86855.0,0.23026737]
[1765994779334,0.01212196,86866.0,86854.0,0.01151357]
[1765994779533,0.001,86861.0,86854.0,0.01151357]
[1765994779744,0.001,86861.0,86853.0,0.0115137]
[1765994779897,0.001,86861.0,86848.0,0.01151436]
[1765994780106,0.001,86861.0,86849.0,0.01151423]
[1765994780463,0.001,86861.0,86852.0,0.01151383]
[1765994780668,0.0907,86864.0,86853.0,0.24178754]
[1765994780889,0.0907,86864.0,86849.0,0.01151423]
[1765994780890,0.0907,86864.0,86852.0,0.01151383]
[1765994781096,0.0907,86864.0,86854.0,0.24178348]
[1765994781381,0.24175722,86864.0,86851.0,0.01151397]
[1765994781589,0.0907,86865.0,86855.0,0.01151344]
[1765994781786,0.0907,86865.0,86854.0,0.01151357]
[1765994781933,0.0907,86865.0,86853.0,0.0115137]
[1765994782135,0.0907,86865.0,86852.0,0.23027455]
[1765994782334,0.0907,86865.0,86854.0,0.01151357]
[1765994782589,0.10221211,86865.0,86853.0,0.0115137]
[1765994782795,0.23024577,86864.0,86851.0,0.24179332]
[1765994783137,0.24176366,86862.0,86849.0,0.24179887]
[1765994783335,1.20781288,86864.0,86850.0,0.0115141]
[1765994783494,0.01151238,86863.0,86848.0,0.01151436]
[1765994783693,0.24176002,86863.0,86850.0,0.23027988]
[1765994783918,0.24176002,86863.0,86846.0,0.00122]
[1765994783919,0.01151251,86862.0,86780.0,0.05749735]
[1765994784105,0.0115149,86844.0,86829.0,0.33975]
[1765994784294,1.2183241,86850.0,86834.0,0.23032238]
[1765994784295,1.21832463,86846.0,86834.0,0.23032238]
[1765994784486,1.20681,86846.0,86834.0,0.23032238]
[1765994784686,1.20681,86846.0,86833.0,0.01151635]
[1765994784880,0.01151476,86845.0,86833.0,0.01151635]
[1765994785088,0.01151476,86845.0,86830.0,0.01151675]
[1765994785089,0.73014,86868.0,86846.0,0.01173463]
[1765994785333,0.0907,86864.0,86853.0,0.0115137]
[1765994785543,0.0907,86864.0,86859.0,0.24177067]
[1765994785888,0.003,86862.0,86859.0,0.01151291]
[1765994786098,0.003,86862.0,86858.0,0.01151304]
[1765994786314,1.0,86866.0,86856.0,0.0115133]
[1765994786562,1.0,86866.0,86860.0,0.01151277]
[1765994787077,0.00063259,86861.0,86860.0,0.01151277]
[1765994787302,0.0002,86869.0,86866.0,0.01151198]
[1765994787474,0.0002,86873.0,86867.0,0.01151185]
[1765994787619,0.0002,86873.0,86867.0,0.01251186]
[1765994787820,0.0002,86873.0,86867.0,0.00100001]
[1765994788291,0.01151132,86871.0,86867.0,0.00100001]
[1765994788521,0.74165145,86870.0,86867.0,0.00100001]
[1765994788722,0.01151185,86867.0,86855.0,0.01173344]
[1765994788930,0.73014,86870.0,86856.0,0.0115133]
[1765994789132,0.01151158,86869.0,86855.0,0.00022]
[1765994789333,0.01151158,86869.0,86855.0,0.24200223]
[1765994789562,0.73014,86870.0,86856.0,0.24177862]
[1765994789809,0.73014,86870.0,86857.0,0.01151317]
[1765994789981,0.01151158,86869.0,86855.0,0.24200223]
[1765994790156,0.24174452,86869.0,86856.0,0.0115133]
[1765994790356,0.24174452,86869.0,86855.0,0.24178223]
[1765994790357,0.24174452,86869.0,86857.0,0.01151317]
[1765994790772,0.01151198,86866.0,86853.0,0.36678044]
[1765994791116,0.01312444,86869.0,86855.0,0.01151344]
[1765994791246,0.01312444,86869.0,86857.0,0.01151317]
[1765994791247,0.73014,86867.0,86857.0,0.01151317]
[1765994791661,0.23023967,86866.0,86853.0,0.25793226]
[1765994791860,0.73014,86867.0,86854.0,0.01151357]
[1765994792059,0.73014,86867.0,86858.0,0.01151304]
[1765994792336,0.74165185,86867.0,86854.0,0.23026891]
[1765994792538,0.74165185,86867.0,86853.0,0.03917414]
[1765994792539,1.20681,86867.0,86858.0,0.23026006]
[1765994792738,0.73175286,86867.0,86854.0,0.01151357]
[1765994792937,1.21832198,86866.0,86854.0,0.01151357]
[1765994793159,0.00161286,86867.0,86860.0,0.01151277]
[1765994793361,0.00161286,86867.0,86858.0,0.01151304]
[1765994793539,0.00161286,86867.0,86858.0,0.24177159]
[1765994793774,0.00161286,86867.0,86863.0,0.01151238]
[1765994793987,0.00161286,86867.0,86863.0,0.24175771]
[1765994794195,0.25950724,86873.0,86863.0,0.00161287]
[1765994794441,0.73014,86874.0,86868.0,0.24174388]
[1765994794652,0.0907,86877.0,86870.0,0.01151145]
[1765994794653,0.0907,86876.0,86870.0,0.01151145]
[1765994794868,1.0,86875.0,86865.0,0.2302373]
[1765994795087,1.0,86875.0,86865.0,0.00161287]
[1765994795311,1.0,86875.0,86866.0,0.01151198]
[1765994795542,1.0,86875.0,86865.0,0.01312498]
[1765994796034,1.0,86875.0,86867.0,0.01151185]
[1765994796407,1.0,86875.0,86865.0,0.01312498]
[1765994796613,1.0,86875.0,86865.0,0.00161287]
[1765994796974,1.0,86876.0,86865.0,0.00161287]
[1765994797194,0.01151065,86876.0,86865.0,0.00161287]
[1765994797399,0.001,86875.0,86865.0,0.00161287]
[1765994797603,0.01151079,86875.0,86865.0,0.00161287]
[1765994797845,0.01151105,86873.0,86865.0,0.00161287]
[1765994797994,0.01151118,86872.0,86865.0,0.00161287]
[1765994798222,0.001,86875.0,86865.0,0.00161287]
[1765994798405,0.001,86875.0,86868.0,0.24174608]
[1765994798602,0.001,86875.0,86872.0,0.24173429]
[1765994798790,0.01150906,86888.0,86872.0,0.24173429]
[1765994798791,1.0,86879.0,86873.0,0.24172989]
[1765994798990,1.0,86879.0,86873.0,0.01151105]
[1765994799185,1.0,86879.0,86873.0,0.01312392]
[1765994799545,0.0002,86880.0,86874.0,0.24172887]
[1765994799899,0.0002,86880.0,86875.0,0.01151079]
[1765994800193,0.0002,86880.0,86876.0,0.01151065]
[1765994800322,0.00025294,86877.0,86876.0,0.24172301]
[1765994800526,0.0115088,86890.0,86878.0,0.24171754]
[1765994800731,0.02766044,86890.0,86878.0,2.87e-06]
[1765994800914,1.47414522,86879.0,86878.0,2.87e-06]
[1765994801118,1.24394,86879.0,86878.0,2.87e-06]
[1765994801318,0.73303,86879.0,86878.0,2.87e-06]
[1765994801561,0.52241959,86884.0,86878.0,2.87e-06]
[1765994801762,1.24394,86884.0,86878.0,2.87e-06]
[1765994802367,0.00025292,86885.0,86878.0,2.87e-06]
[1765994803398,0.001,86879.0,86878.0,2.87e-06]
[1765994803565,0.001,86879.0,86869.0,0.23022957]
[1765994803796,0.001,86879.0,86862.0,0.01832]
[1765994803797,0.01151012,86880.0,86868.0,0.01151171]
[1765994803963,0.73303,86878.0,86867.0,0.01151185]
[1765994804166,0.73303,86878.0,86868.0,0.01151171]
[1765994804568,0.73303,86878.0,86866.0,0.01151198]
[1765994804776,0.73303,86878.0,86865.0,0.2302406]
[1765994804777,1.24394,86877.0,86865.0,0.01151211]
[1765994804971,1.24394,86877.0,86866.0,0.01151198]
[1765994805137,1.24394,86877.0,86868.0,0.01151171]
[1765994805341,1.24394,86873.0,86862.0,0.01151251]
[1765994805548,1.48566884,86875.0,86861.0,0.24176542]
[1765994805767,0.00161287,86878.0,86850.0,0.0115141]
[1765994805768,0.01151224,86864.0,86850.0,0.0115141]
[1765994805979,1.02766044,86874.0,86849.0,0.24179632]
[1765994805980,1.24394,86861.0,86849.0,0.24179632]
[1765994806248,1.24394,86861.0,86840.0,0.47458]
[1765994806249,0.23030861,86840.0,86820.0,0.00099999]
[1765994806463,0.23030861,86840.0,86765.0,0.1499]
[1765994806464,0.74454755,86824.0,86806.0,0.47458]
[1765994806665,0.73303,86822.0,86806.0,0.24191851]
[1765994806878,0.73303,86822.0,86807.0,0.0115198]
[1765994807076,0.23035901,86821.0,86805.0,0.48610007]
[1765994807284,0.73303,86822.0,86807.0,0.0115198]
[1765994807442,0.01151795,86821.0,86808.0,0.01151967]
[1765994807640,0.96338838,86822.0,86803.0,0.23040532]
[1765994807641,0.24188866,86817.0,86804.0,0.0115202]
[1765994807958,0.24188366,86819.0,86805.0,0.2419207]
[1765994808163,0.24188366,86819.0,86800.0,0.23041413]
[1765994808164,0.23040222,86805.0,86789.0,0.23044232]
[1765994808407,0.51091,86815.0,86760.0,0.00099999]
[1765994808408,0.01832,86810.0,86801.0,0.23041108]
[1765994808581,0.00161287,86819.0,86806.0,0.01151994]
[1765994808582,0.01313108,86819.0,86806.0,0.01151994]
[1765994808775,0.01313108,86819.0,86809.0,0.01151954]
[1765994808776,0.00161287,86819.0,86809.0,0.01151954]
[1765994809131,0.00161287,86819.0,86807.0,0.0115198]
[1765994809324,0.00161287,86819.0,86809.0,0.01151954]
[1765994809616,0.00161287,86819.0,86803.0,0.01152033]
[1765994809617,0.73303,86814.0,86803.0,0.01152033]
[1765994809992,0.73303,86814.0,86805.0,0.01152007]
[1765994810198,0.73303,86814.0,86806.0,0.01151994]
[1765994810729,1.0,86818.0,86807.0,0.0115198]
[1765994810868,1.0,86818.0,86808.0,0.01151967]
[1765994811068,1.0,86818.0,86809.0,0.01151954]
[1765994811269,1.0,86818.0,86808.0,0.01151967]
[1765994811675,1.0,86818.0,86807.0,0.0115198]
[1765994811875,1.0,86818.0,86808.0,0.01151967]
[1765994812076,1.27160044,86822.0,86803.0,0.23040648]
[1765994812077,0.01151768,86823.0,86810.0,0.01151941]
[1765994812279,0.01151755,86824.0,86815.0,0.00025322]
[1765994812486,0.01151768,86823.0,86815.0,0.00025322]
[1765994812715,0.01151755,86824.0,86815.0,0.00025322]
[1765994813090,0.01151781,86822.0,86815.0,0.00025322]
[1765994813310,0.24187236,86823.0,86815.0,0.00025322]
[1765994813311,0.01151768,86823.0,86815.0,0.00025322]
[1765994813932,0.01251755,86824.0,86815.0,0.00025322]
[1765994814133,0.01151768,86823.0,86815.0,0.00025322]
[1765994814337,0.23036252,86820.0,86815.0,0.00025322]
[1765994814548,0.01151781,86822.0,86815.0,0.00025322]
[1765994814823,0.01151795,86821.0,86815.0,0.00025322]
[1765994815298,0.01151781,86822.0,86815.0,0.00025322]
[1765994815985,0.01251768,86823.0,86815.0,0.00025322]
[1765994816151,0.01151635,86833.0,86820.0,0.01151808]
[1765994816318,0.51091,86834.0,86815.0,0.00025322]
[1765994816319,0.01151715,86827.0,86815.0,0.00025322]
[1765994816525,0.001,86822.0,86816.0,0.01151861]
[1765994816747,0.001,86822.0,86815.0,0.01177196]
[1765994817146,0.001,86822.0,86815.0,0.00025322]
[1765994817550,0.73303,86819.0,86815.0,3.22e-06]
[1765994817807,0.01151795,86821.0,86815.0,3.22e-06]
[1765994817924,0.73464287,86822.0,86815.0,3.22e-06]
[1765994818338,0.00161287,86822.0,86815.0,0.01152196]
[1765994818547,0.00161287,86822.0,86815.0,3.22e-06]
[1765994818979,0.00161287,86822.0,86815.0,0.01152196]
[1765994819184,0.00161287,86822.0,86816.0,0.01151861]
[1765994819384,0.00161287,86822.0,86815.0,0.24189611]
[1765994819597,0.00161287,86822.0,86815.0,3.22e-06]
[1765994819768,1.24394,86820.0,86815.0,3.22e-06]
[1765994819977,0.00261287,86822.0,86815.0,3.22e-06]
[1765994820378,0.00161287,86822.0,86816.0,0.01151861]
[1765994820578,0.00161287,86822.0,86815.0,3.22e-06]
[1765994820579,0.001,86822.0,86817.0,0.01382217]
[1765994820936,0.73303,86828.0,86818.0,0.01151834]
[1765994821410,0.0907,86832.0,86820.0,0.71645911]
[1765994821579,0.2418458,86833.0,86820.0,0.47458]
[1765994821773,0.01151715,86827.0,86815.0,3.22e-06]
[1765994821997,0.51091,86822.0,86815.0,3.22e-06]
[1765994822197,0.73303,86821.0,86815.0,3.22e-06]
[1765994822400,0.74454795,86821.0,86815.0,3.22e-06]
[1765994822599,0.01151808,86820.0,86815.0,3.22e-06]
[1765994822803,0.74454795,86821.0,86815.0,3.22e-06]
[1765994822804,0.73303,86821.0,86815.0,3.22e-06]
[1765994823211,0.01151662,86831.0,86815.0,3.22e-06]
[1765994823412,0.73303,86826.0,86815.0,3.22e-06]
[1765994823614,0.73303,86826.0,86815.0,0.01152196]
[1765994823812,0.73303,86826.0,86816.0,0.01151861]
[1765994824020,0.02983622,86834.0,86815.0,0.01152196]
[1765994824021,0.51091,86845.0,86832.0,0.01151649]
[1765994824222,0.01151476,86845.0,86833.0,0.01151635]
[1765994824571,0.01151476,86845.0,86835.0,0.24183787]
[1765994824572,0.0907,86845.0,86835.0,0.24183787]
[1765994824720,0.01151423,86849.0,86831.0,0.47458]
[1765994824721,0.76069044,86856.0,86844.0,0.24181286]
[1765994824929,0.76069044,86856.0,86837.0,0.02268]
[1765994824930,0.53857044,86855.0,86837.0,0.47458]
[1765994825119,0.00161287,86856.0,86850.0,0.0115141]
[1765994825477,0.02929249,86859.0,86853.0,0.0115137]
[1765994825686,0.02929249,86859.0,86851.0,0.01151397]
[1765994825880,1.0,86871.0,86860.0,0.23025439]
[1765994826122,1.0,86873.0,86862.0,0.01151251]
[1765994826288,0.10221079,86875.0,86862.0,0.02532752]
[1765994826516,0.10221079,86875.0,86857.0,0.01151317]
[1765994826517,0.01151118,86872.0,86857.0,0.01151317]
[1765994826849,0.00161287,86872.0,86859.0,0.47458]
[1765994827041,0.01150999,86881.0,86868.0,0.01151171]
[1765994827220,0.01150999,86881.0,86869.0,0.01832]
[1765994827449,0.01151026,86879.0,86869.0,0.01832]
[1765994827751,0.0907,86881.0,86869.0,0.25016153]
[1765994827899,0.0907,86881.0,86870.0,0.01151145]
[1765994828094,0.10220999,86881.0,86869.0,0.01993]
[1765994828300,0.51091,86872.0,86869.0,0.00161]
[1765994828521,0.0021919,86877.0,86865.0,0.01832]
[1765994828724,0.0021919,86877.0,86865.0,0.02983211]
[1765994828878,0.0021919,86877.0,86867.0,0.01151185]
[1765994829084,0.0021919,86877.0,86870.0,0.01151145]
[1765994829281,0.0021919,86877.0,86874.0,0.01151092]
[1765994829282,1.9e-06,86877.0,86874.0,0.01151092]
[1765994829571,0.01150933,86886.0,86876.0,0.52095]
[1765994829723,0.01150933,86886.0,86876.0,0.52256]
[1765994829724,0.01150946,86885.0,86876.0,0.52256]
[1765994829893,0.01150946,86885.0,86876.0,0.00161]
[1765994830097,0.01150959,86884.0,86876.0,0.00161]
[1765994830688,0.01150933,86886.0,86876.0,0.00161]
[1765994830870,0.24170745,86882.0,86876.0,0.00161]
[1765994831073,0.72009,86880.0,86876.0,0.00161]
[1765994831627,0.24169392,86887.0,86876.0,0.00161]
[1765994831628,1.0,86894.0,86878.0,0.47517]
[1765994831841,1.0,86893.0,86884.0,0.24170071]
[1765994832060,1.0,86893.0,86882.0,0.23019711]
[1765994832308,1.0,86893.0,86880.0,0.2417124]
[1765994832309,1.0,86892.0,86881.0,0.01150999]
[1765994832536,1.01150853,86892.0,86880.0,0.00161]
[1765994832742,0.01150867,86891.0,86880.0,0.00161]
[1765994832919,1.0,86892.0,86884.0,0.001]
[1765994833130,0.23017343,86891.0,86884.0,0.001]
[1765994833348,0.01150893,86889.0,86880.0,0.00161]
[1765994833552,1.0,86891.0,86882.0,0.01150986]
[1765994833778,0.48567,86892.0,86881.0,0.01150999]
[1765994833779,1.0,86892.0,86881.0,0.01150999]
[1765994833966,1.0,86892.0,86884.0,0.01150959]
[1765994834166,1.0,86892.0,86884.0,0.001]
[1765994834547,1.01150853,86892.0,86884.0,0.001]
[1765994834747,1.0,86891.0,86884.0,0.001]
[1765994834941,0.24167412,86894.0,86884.0,0.001]
[1765994834942,0.24167487,86894.0,86884.0,0.001]
[1765994835131,1.0,86892.0,86884.0,0.001]
[1765994835328,1.0,86893.0,86882.0,0.01150986]
[1765994835557,1.0,86893.0,86883.0,0.01150973]
[1765994835757,1.0,86893.0,86882.0,0.01250986]
[1765994836092,1.01150853,86892.0,86881.0,0.01311999]
[1765994836221,1.0,86893.0,86884.0,0.001]
[1765994836423,1.0,86892.0,86881.0,0.01311999]
[1765994836782,1.0,86892.0,86881.0,0.00161]
[1765994836783,1.01150853,86892.0,86881.0,0.00161]
[1765994837140,0.01150853,86892.0,86881.0,0.00161]
[1765994837361,1.0,86891.0,86881.0,0.00161]
[1765994837784,1.0,86892.0,86882.0,0.01150986]
[1765994837964,1.0,86893.0,86882.0,0.01311986]
[1765994838402,1.0,86895.0,86882.0,0.00161]
[1765994838736,0.07155511,86939.0,86892.0,0.01150853]
[1765994838737,0.72009,86907.0,86892.0,0.01150853]
[1765994838924,0.82229642,86908.0,86892.0,0.01311853]
[1765994839209,0.72009,86903.0,86892.0,0.00161]
[1765994839461,0.72009,86903.0,86893.0,0.0115084]
[1765994839669,0.72009,86903.0,86893.0,0.24167621]
[1765994839877,0.72009,86903.0,86892.0,0.01311853]
[1765994839878,0.72009,86903.0,86892.0,0.00161]
[1765994840340,0.73159708,86903.0,86892.0,0.00161]
[1765994840809,0.72009,86903.0,86892.0,0.01311853]
[1765994841276,0.72009,86903.0,86893.0,0.0115084]
[1765994841524,0.72009,86903.0,86893.0,0.00161]
[1765994841693,1.21726708,86903.0,86893.0,0.00161]
[1765994841894,0.48567,86902.0,86893.0,0.00161]
[1765994842306,0.23015083,86900.0,86893.0,0.00161]
[1765994842529,0.73159774,86898.0,86893.0,0.00161]
[1765994842734,0.01150761,86899.0,86893.0,0.00161]
[1765994842939,0.01150814,86895.0,86882.0,0.23019727]
[1765994843162,0.01150814,86895.0,86881.0,0.26936527]
[1765994843163,0.0115084,86893.0,86883.0,0.01832]
[1765994843367,0.0115084,86893.0,86876.0,0.00026561]
[1765994843368,0.2301814,86888.0,86876.0,0.00026561]
[1765994843572,0.72009,86890.0,86879.0,0.01312026]
[1765994843809,0.72009,86890.0,86881.0,0.01150999]
[1765994844014,0.24165862,86900.0,86885.0,0.01150946]
[1765994844222,0.24165862,86900.0,86881.0,0.00161]
[1765994844223,0.01150853,86892.0,86881.0,0.00161]
[1765994844398,0.01150906,86888.0,86881.0,0.00161]
[1765994845055,0.01150906,86888.0,86876.0,0.01177626]
[1765994845056,0.01150986,86882.0,86876.0,0.00026561]
[1765994845262,0.96179472,86883.0,86876.0,0.00026561]
[1765994845491,0.48567,86888.0,86865.0,0.47517]
[1765994845492,0.00161287,86877.0,86865.0,0.23024224]
[1765994845700,0.00161287,86877.0,86868.0,0.01151171]
[1765994845908,0.00161287,86877.0,86869.0,0.23023139]
[1765994846139,0.01312339,86877.0,86865.0,0.01151211]
[1765994846340,0.01312339,86877.0,86870.0,0.01151145]
[1765994846341,0.00161287,86877.0,86870.0,0.01151145]
[1765994846545,0.00161287,86877.0,86868.0,0.23023218]
[1765994846753,0.00161287,86877.0,86866.0,0.01151198]
[1765994847025,0.01312339,86877.0,86861.0,0.01151264]
[1765994847274,0.72009,86875.0,86864.0,0.01151224]
[1765994847543,0.01312339,86877.0,86869.0,0.01151158]
[1765994847544,0.00161287,86877.0,86869.0,0.01151158]
[1765994847785,0.0115092,86887.0,86869.0,0.01151158]
[1765994847786,0.0907,86892.0,86880.0,0.01151012]
[1765994848007,0.011508,86896.0,86884.0,0.24170005]
[1765994848008,0.01832,86896.0,86884.0,0.24170005]
[1765994848233,0.01832,86896.0,86892.0,0.23017068]
[1765994848477,0.01150668,86906.0,86893.0,0.23016786]
[1765994848478,0.01832,86906.0,86893.0,0.23016786]
[1765994848775,0.24164337,86905.0,86893.0,0.0131184]
[1765994849042,0.01150681,86905.0,86893.0,0.0131184]
[1765994849286,0.01150695,86904.0,86893.0,0.0131184]
[1765994849508,0.25996114,86906.0,86893.0,0.0131184]
[1765994849710,0.02982668,86906.0,86894.0,0.01150827]
[1765994849921,0.01832,86906.0,86894.0,0.01150827]
[1765994850329,0.02982668,86906.0,86895.0,0.01150814]
[1765994850522,0.01832,86906.0,86895.0,0.24167075]
[1765994850750,0.01832,86906.0,86895.0,0.24328075]
[1765994850942,1.20576,86905.0,86895.0,0.00161]
[1765994851167,1.20576,86905.0,86895.0,0.01311814]
[1765994851299,1.20576,86905.0,86895.0,0.00161]
[1765994851942,1.21726681,86905.0,86895.0,0.00161]
[1765994852102,1.44740316,86905.0,86895.0,0.00161]
[1765994852308,0.01832,86906.0,86895.0,0.01311814]
[1765994852715,0.01832,86906.0,86895.0,0.00161]
[1765994852926,0.24164318,86905.0,86895.0,0.00161]
[1765994853148,0.96173318,86905.0,86895.0,0.00161]
[1765994853326,0.01150695,86904.0,86895.0,0.00161]
[1765994853534,0.48567,86903.0,86895.0,0.00161]
[1765994853734,0.72009,86902.0,86895.0,0.00161]
[1765994853940,0.01832,86906.0,86895.0,0.00161]
[1765994853941,0.02982668,86906.0,86895.0,0.00161]
[1765994854552,0.01150681,86905.0,86895.0,0.00161]
[1765994854721,0.02982668,86906.0,86895.0,0.00161]
[1765994855151,0.01832,86906.0,86895.0,0.00161]
[1765994855366,0.01150695,86904.0,86895.0,0.00161]
[1765994855565,0.24164377,86905.0,86895.0,0.00161]
[1765994855566,0.01150681,86905.0,86895.0,0.00161]
[1765994856204,0.73159681,86905.0,86895.0,0.00161]
[1765994856421,0.23013947,86904.0,86895.0,0.00161]
[1765994856715,0.01150695,86904.0,86895.0,0.00161]
[1765994856922,0.01150721,86902.0,86895.0,0.00161]
[1765994857120,0.01150708,86903.0,86895.0,0.00161]
[1765994857317,0.72009,86903.0,86895.0,0.00161]
[1765994857521,0.72009,86903.0,86895.0,0.01311814]
[1765994857721,0.72009,86903.0,86895.0,0.00161]
[1765994858513,0.72009,86896.0,86895.0,0.00161]
[1765994858711,0.72009,86896.0,86884.0,0.01832]
[1765994859000,0.72009,86895.0,86885.0,0.01150946]
[1765994859410,0.72009,86895.0,86887.0,0.0115092]
[1765994859562,0.2301417,86903.0,86887.0,0.0115092]
[1765994859563,0.48567,86904.0,86894.0,0.01150827]
[1765994859773,0.01150681,86905.0,86894.0,0.01150827]
[1765994859977,0.01150695,86904.0,86892.0,0.01150853]
[1765994860319,0.01150708,86903.0,86892.0,0.01150853]
[1765994860452,0.01150681,86905.0,86892.0,0.01150853]
[1765994860663,0.01150695,86904.0,86892.0,0.24167706]
[1765994860882,0.01150695,86904.0,86893.0,0.0115084]
[1765994861109,0.01150827,86894.0,86884.0,0.001]
[1765994861338,0.68107,86894.0,86881.0,0.01150999]
[1765994861549,0.69257827,86894.0,86882.0,0.01150986]
[1765994861755,0.24167889,86893.0,86879.0,0.24171516]
[1765994862011,0.68107,86892.0,86882.0,0.01150986]
[1765994862598,0.68107,86892.0,86882.0,0.241705]
[1765994862848,0.23016004,86899.0,86887.0,0.0115092]
[1765994863023,1.0,86901.0,86890.0,0.0115088]
[1765994863223,1.0,86903.0,86893.0,0.0115084]
[1765994863424,1.0,86903.0,86887.0,0.54384]
[1765994863425,0.01150787,86897.0,86886.0,0.01150933]
[1765994863640,0.69257774,86898.0,86886.0,0.24169588]
[1765994863641,0.68107,86898.0,86886.0,0.24169588]
[1765994863846,0.01150708,86903.0,86883.0,0.23019245]